[Event "Titled Tuesday Blitz January 11 2022"]
[White "Bryakin, Mikhail"]
[Black "Aradhya, Garg"]
[WhiteFideId "4165314"]
[BlackFideId "25006746"]
[WhiteElo "2421"]
[BlackElo "2169"]
[Result "1-0"]
[Round "06"]
[TimeControl "180+1"]
[Date "2022.01.11"]
[WhiteClock "0:01:25"]
[BlackClock "0:00:13"]

1. e4 {[%clk 0:03:00]}  e5 {[%clk 0:02:56]} 2. d4 {[%clk 0:02:56]}  exd4 {[%clk 0:02:55]} 3. Qxd4 {[%clk 0:02:56]}  Nc6 {[%clk 0:02:55]} 4. Qd3 {[%clk 0:02:56]}  Nf6 {[%clk 0:02:55]} 5. Nc3 {[%clk 0:02:56]}  Bb4 {[%clk 0:02:55]} 6. Bd2 {[%clk 0:02:56]}  O-O {[%clk 0:02:55]} 7. O-O-O {[%clk 0:02:56]}  b5 {[%clk 0:02:41]} 8. f4 {[%clk 0:02:52]}  Bxc3 {[%clk 0:02:39]} 9. Bxc3 {[%clk 0:02:52]}  b4 {[%clk 0:02:39]} 10. Be1 {[%clk 0:02:48]}  d6 {[%clk 0:02:38]} 11. Bh4 {[%clk 0:02:48]}  Qe7 {[%clk 0:02:36]} 12. Re1 {[%clk 0:02:46]}  Qe6 {[%clk 0:02:34]} 13. Kb1 {[%clk 0:02:44]}  d5 {[%clk 0:02:24]} 14. exd5 {[%clk 0:02:39]}  Qxd5 {[%clk 0:02:23]} 15. Bxf6 {[%clk 0:02:40]}  Qxd3 {[%clk 0:02:21]} 16. Bxd3 {[%clk 0:02:40]}  gxf6 {[%clk 0:02:22]} 17. Be4 {[%clk 0:02:39]}  Bd7 {[%clk 0:02:17]} 18. Nf3 {[%clk 0:02:39]}  Rae8 {[%clk 0:02:15]} 19. Nd2 {[%clk 0:02:30]}  Nd4 {[%clk 0:02:09]} 20. c3 {[%clk 0:02:29]}  bxc3 {[%clk 0:02:08]} 21. bxc3 {[%clk 0:02:30]}  Rb8+ {[%clk 0:02:03]} 22. Kc1 {[%clk 0:02:31]}  Nb5 {[%clk 0:02:00]} 23. Re3 {[%clk 0:02:31]}  Rfe8 {[%clk 0:01:53]} 24. Rhe1 {[%clk 0:02:31]}  f5 {[%clk 0:01:48]} 25. Bc2 {[%clk 0:02:26]}  Re6 {[%clk 0:01:22]} 26. Bb3 {[%clk 0:02:21]}  Rc6 {[%clk 0:01:20]} 27. Kc2 {[%clk 0:02:15]}  Nd4+ {[%clk 0:01:19]} 28. Kd3 {[%clk 0:02:15]}  Nxb3 {[%clk 0:01:18]} 29. axb3 {[%clk 0:02:16]}  Be6 {[%clk 0:01:17]} 30. Re5 {[%clk 0:02:07]}  Kg7 {[%clk 0:01:11]} 31. b4 {[%clk 0:02:06]}  Rd8+ {[%clk 0:01:07]} 32. Kc2 {[%clk 0:02:06]}  Rcd6 {[%clk 0:01:08]} 33. Nf3 {[%clk 0:02:04]}  Bd5 {[%clk 0:01:01]} 34. Nd4 {[%clk 0:02:01]}  Be4+ {[%clk 0:01:01]} 35. R5xe4 {[%clk 0:02:01]}  fxe4 {[%clk 0:01:01]} 36. Nf5+ {[%clk 0:02:01]}  Kf6 {[%clk 0:01:01]} 37. Nxd6 {[%clk 0:02:02]}  cxd6 {[%clk 0:00:59]} 38. Rxe4 {[%clk 0:02:03]}  d5 {[%clk 0:01:00]} 39. Re5 {[%clk 0:02:02]}  d4 {[%clk 0:01:00]} 40. c4 {[%clk 0:01:51]}  d3+ {[%clk 0:00:59]} 41. Kd2 {[%clk 0:01:52]}  Rd4 {[%clk 0:01:00]} 42. Rc5 {[%clk 0:01:53]}  Rxf4 {[%clk 0:00:57]} 43. Kxd3 {[%clk 0:01:53]}  Rf2 {[%clk 0:00:54]} 44. Ra5 {[%clk 0:01:51]}  Rxg2 {[%clk 0:00:54]} 45. Rxa7 {[%clk 0:01:51]}  Rxh2 {[%clk 0:00:53]} 46. b5 {[%clk 0:01:51]}  Ke6 {[%clk 0:00:54]} 47. Kd4 {[%clk 0:01:49]}  h5 {[%clk 0:00:43]} 48. Kc5 {[%clk 0:01:31]}  h4 {[%clk 0:00:40]} 49. b6 {[%clk 0:01:32]}  Rb2 {[%clk 0:00:39]} 50. Ra3 {[%clk 0:01:30]}  Kf5 {[%clk 0:00:34]} 51. Rf3+ {[%clk 0:01:26]}  Ke4 {[%clk 0:00:28]} 52. Rxf7 {[%clk 0:01:26]}  h3 {[%clk 0:00:28]} 53. Rh7 {[%clk 0:01:22]}  h2 {[%clk 0:00:28]} 54. Kc6 {[%clk 0:01:23]}  Kd4 {[%clk 0:00:25]} 55. c5 {[%clk 0:01:23]}  Rc2 {[%clk 0:00:16]} 56. Rh4+ {[%clk 0:01:23]}  Ke5 {[%clk 0:00:17]} 57. b7 {[%clk 0:01:23]}  Rb2 {[%clk 0:00:17]} 58. Kc7 {[%clk 0:01:23]}  Rb4 {[%clk 0:00:12]} 59. Rxh2 {[%clk 0:01:23]}  Kd5 {[%clk 0:00:11]} 60. Rh5+ {[%clk 0:01:22]}  Ke6 {[%clk 0:00:10]} 61. b8=Q {[%clk 0:01:22]}  Rxb8 {[%clk 0:00:10]} 62. Kxb8 {[%clk 0:01:23]}  Kf6 {[%clk 0:00:11]} 63. c6 {[%clk 0:01:23]}  Kg6 {[%clk 0:00:12]} 64. Re5 {[%clk 0:01:24]}  Kf6 {[%clk 0:00:12]} 65. Re1 {[%clk 0:01:24]}  Kf7 {[%clk 0:00:12]} 66. c7 {[%clk 0:01:25]}  Kf6 {[%clk 0:00:13]} 67. c8=Q {[%clk 0:01:25]} 1-0


[Site "https://www.chess.com"]

[Event "Titled Tuesday Blitz January 11 2022"]
[White "Corrales Jimenez, Fidel"]
[Black "Avazkhonov, Alikhon"]
[WhiteFideId "3506690"]
[BlackFideId "14208504"]
[WhiteElo "2541"]
[BlackElo "1739"]
[Result "1-0"]
[Round "06"]
[TimeControl "180+1"]
[Date "2022.01.11"]
[WhiteClock "0:01:28"]
[BlackClock "0:00:09"]

1. d4 {[%clk 0:03:00]}  d5 {[%clk 0:02:58]} 2. Nf3 {[%clk 0:03:00]}  c6 {[%clk 0:02:56]} 3. Bf4 {[%clk 0:03:00]}  Bf5 {[%clk 0:02:51]} 4. e3 {[%clk 0:02:59]}  Nf6 {[%clk 0:02:50]} 5. Bd3 {[%clk 0:02:59]}  Bxd3 {[%clk 0:02:49]} 6. cxd3 {[%clk 0:02:57]}  e6 {[%clk 0:02:46]} 7. Nc3 {[%clk 0:02:56]}  Bd6 {[%clk 0:02:45]} 8. Ne5 {[%clk 0:02:56]}  O-O {[%clk 0:02:38]} 9. Qf3 {[%clk 0:02:55]}  Bxe5 {[%clk 0:02:23]} 10. Bxe5 {[%clk 0:02:46]}  Nfd7 {[%clk 0:02:23]} 11. Bd6 {[%clk 0:02:47]}  Re8 {[%clk 0:02:21]} 12. h4 {[%clk 0:02:45]}  Nf8 {[%clk 0:02:09]} 13. Bxf8 {[%clk 0:02:43]}  Rxf8 {[%clk 0:02:02]} 14. h5 {[%clk 0:02:43]}  Nd7 {[%clk 0:01:52]} 15. g4 {[%clk 0:02:41]}  e5 {[%clk 0:01:33]} 16. Ne2 {[%clk 0:02:25]}  exd4 {[%clk 0:01:17]} 17. Nxd4 {[%clk 0:02:25]}  Ne5 {[%clk 0:01:12]} 18. Qe2 {[%clk 0:02:25]}  c5 {[%clk 0:01:02]} 19. Nf5 {[%clk 0:02:25]}  h6 {[%clk 0:00:44]} 20. f4 {[%clk 0:02:24]}  Nc6 {[%clk 0:00:42]} 21. O-O-O {[%clk 0:02:23]}  d4 {[%clk 0:00:38]} 22. g5 {[%clk 0:02:23]}  hxg5 {[%clk 0:00:35]} 23. Rdg1 {[%clk 0:02:23]}  dxe3 {[%clk 0:00:34]} 24. Rxg5 {[%clk 0:02:22]}  Nd4 {[%clk 0:00:29]} 25. Qg4 {[%clk 0:01:29]}  Nxf5 {[%clk 0:00:25]} 26. Qxf5 {[%clk 0:01:30]}  Qc8 {[%clk 0:00:14]} 27. Rxg7+ {[%clk 0:01:28]}  Kxg7 {[%clk 0:00:09]} 28. Rg1+ {[%clk 0:01:28]} 1-0


[Site "https://www.chess.com"]

[Event "Titled Tuesday Blitz January 11 2022"]
[White "Costachi, Mihnea"]
[Black "Samunenkov, Ihor"]
[WhiteFideId "1217518"]
[BlackFideId "14187086"]
[WhiteElo "2464"]
[BlackElo "2406"]
[Result "1/2-1/2"]
[Round "06"]
[TimeControl "180+1"]
[Date "2022.01.11"]
[WhiteClock "0:00:30"]
[BlackClock "0:00:21"]

1. e4 {[%clk 0:03:00]}  c6 {[%clk 0:02:58]} 2. g3 {[%clk 0:02:58]}  d5 {[%clk 0:02:58]} 3. exd5 {[%clk 0:02:59]}  cxd5 {[%clk 0:02:55]} 4. Bg2 {[%clk 0:02:59]}  Nc6 {[%clk 0:02:54]} 5. Nc3 {[%clk 0:02:58]}  Nf6 {[%clk 0:02:53]} 6. d3 {[%clk 0:02:57]}  Bg4 {[%clk 0:02:47]} 7. Nf3 {[%clk 0:02:55]}  e6 {[%clk 0:02:45]} 8. h3 {[%clk 0:02:55]}  Bxf3 {[%clk 0:02:42]} 9. Bxf3 {[%clk 0:02:54]}  Bd6 {[%clk 0:02:38]} 10. O-O {[%clk 0:02:50]}  O-O {[%clk 0:02:38]} 11. Bg2 {[%clk 0:02:48]}  Rc8 {[%clk 0:02:38]} 12. Bd2 {[%clk 0:02:48]}  a6 {[%clk 0:02:37]} 13. Ne2 {[%clk 0:02:47]}  Qd7 {[%clk 0:01:56]} 14. d4 {[%clk 0:02:44]}  b5 {[%clk 0:01:56]} 15. a3 {[%clk 0:02:44]}  Ne4 {[%clk 0:01:53]} 16. c3 {[%clk 0:02:41]}  Nxd2 {[%clk 0:01:52]} 17. Qxd2 {[%clk 0:02:41]}  Na5 {[%clk 0:01:53]} 18. Rae1 {[%clk 0:02:39]}  Nc4 {[%clk 0:01:52]} 19. Qc2 {[%clk 0:02:38]}  a5 {[%clk 0:01:52]} 20. Nc1 {[%clk 0:02:37]}  b4 {[%clk 0:01:52]} 21. axb4 {[%clk 0:02:38]}  axb4 {[%clk 0:01:53]} 22. Nd3 {[%clk 0:02:39]}  bxc3 {[%clk 0:01:52]} 23. bxc3 {[%clk 0:02:40]}  Qc7 {[%clk 0:01:50]} 24. Ra1 {[%clk 0:02:34]}  Na3 {[%clk 0:01:49]} 25. Qe2 {[%clk 0:02:15]}  Qxc3 {[%clk 0:01:47]} 26. Rfd1 {[%clk 0:02:05]}  Nc2 {[%clk 0:01:45]} 27. Ra6 {[%clk 0:02:01]}  Nxd4 {[%clk 0:01:44]} 28. Qe3 {[%clk 0:01:58]}  Nf5 {[%clk 0:01:28]} 29. Qe2 {[%clk 0:01:46]}  Be7 {[%clk 0:01:26]} 30. Ne5 {[%clk 0:01:43]}  Qc7 {[%clk 0:00:58]} 31. Nxf7 {[%clk 0:01:23]}  Rxf7 {[%clk 0:00:57]} 32. Qxe6 {[%clk 0:01:23]}  Rf8 {[%clk 0:00:27]} 33. Rxd5 {[%clk 0:01:20]}  Kh8 {[%clk 0:00:26]} 34. Rd7 {[%clk 0:01:16]}  Qc1+ {[%clk 0:00:24]} 35. Kh2 {[%clk 0:01:17]}  Rf6 {[%clk 0:00:21]} 36. Qe2 {[%clk 0:01:06]}  Rxa6 {[%clk 0:00:19]} 37. Qxa6 {[%clk 0:01:07]}  Qb2 {[%clk 0:00:11]} 38. Qa7 {[%clk 0:00:59]}  Qe5 {[%clk 0:00:11]} 39. Rd5 {[%clk 0:00:58]}  Qe6 {[%clk 0:00:10]} 40. Qc7 {[%clk 0:00:53]}  Bf6 {[%clk 0:00:07]} 41. Qc5 {[%clk 0:00:48]}  Be7 {[%clk 0:00:04]} 42. Qc2 {[%clk 0:00:43]}  g6 {[%clk 0:00:03]} 43. Qd3 {[%clk 0:00:40]}  Qf6 {[%clk 0:00:04]} 44. Rd7 {[%clk 0:00:39]}  Ng7 {[%clk 0:00:03]} 45. f4 {[%clk 0:00:36]}  Ne6 {[%clk 0:00:03]} 46. Qe3 {[%clk 0:00:31]}  Rf7 {[%clk 0:00:02]} 47. Bd5 {[%clk 0:00:29]}  Bc5 {[%clk 0:00:02]} 48. Qxe6 {[%clk 0:00:25]}  Qxe6 {[%clk 0:00:03]} 49. Bxe6 {[%clk 0:00:25]}  Rxd7 {[%clk 0:00:04]} 50. Bxd7 {[%clk 0:00:26]}  Kg7 {[%clk 0:00:04]} 51. Kg2 {[%clk 0:00:27]}  Bd6 {[%clk 0:00:05]} 52. Kf3 {[%clk 0:00:27]}  Kf6 {[%clk 0:00:05]} 53. h4 {[%clk 0:00:27]}  h6 {[%clk 0:00:04]} 54. Kg4 {[%clk 0:00:23]}  Bc7 {[%clk 0:00:03]} 55. Be8 {[%clk 0:00:23]}  Bd6 {[%clk 0:00:04]} 56. Bb5 {[%clk 0:00:23]}  Bc7 {[%clk 0:00:04]} 57. Bd3 {[%clk 0:00:24]}  Bd6 {[%clk 0:00:04]} 58. Kf3 {[%clk 0:00:25]}  g5 {[%clk 0:00:04]} 59. fxg5+ {[%clk 0:00:23]}  hxg5 {[%clk 0:00:05]} 60. h5 {[%clk 0:00:24]}  Kg7 {[%clk 0:00:05]} 61. g4 {[%clk 0:00:22]}  Kh6 {[%clk 0:00:06]} 62. Ke4 {[%clk 0:00:23]}  Bf4 {[%clk 0:00:07]} 63. Kf5 {[%clk 0:00:24]}  Bc1 {[%clk 0:00:06]} 64. Be2 {[%clk 0:00:25]}  Bf4 {[%clk 0:00:07]} 65. Ke6 {[%clk 0:00:25]}  Bc1 {[%clk 0:00:07]} 66. Kd5 {[%clk 0:00:26]}  Bf4 {[%clk 0:00:08]} 67. Ke4 {[%clk 0:00:27]}  Bc1 {[%clk 0:00:08]} 68. Kd3 {[%clk 0:00:28]}  Bf4 {[%clk 0:00:09]} 69. Kc2 {[%clk 0:00:28]}  Kg7 {[%clk 0:00:10]} 70. Kd3 {[%clk 0:00:28]}  Kh6 {[%clk 0:00:10]} 71. Ke4 {[%clk 0:00:28]}  Kg7 {[%clk 0:00:11]} 72. Kf5 {[%clk 0:00:28]}  Kh6 {[%clk 0:00:12]} 73. Kf6 {[%clk 0:00:28]}  Bc1 {[%clk 0:00:13]} 74. Bd3 {[%clk 0:00:28]}  Bf4 {[%clk 0:00:14]} 75. Bg6 {[%clk 0:00:27]}  Bc1 {[%clk 0:00:15]} 76. Ke5 {[%clk 0:00:27]}  Bf4+ {[%clk 0:00:16]} 77. Kd4 {[%clk 0:00:27]}  Kg7 {[%clk 0:00:16]} 78. Kd3 {[%clk 0:00:28]}  Kh6 {[%clk 0:00:17]} 79. Kc2 {[%clk 0:00:29]}  Kg7 {[%clk 0:00:18]} 80. Bf5 {[%clk 0:00:29]}  Kh6 {[%clk 0:00:19]} 81. Kd1 {[%clk 0:00:30]}  Kg7 {[%clk 0:00:20]} 82. h6+ {[%clk 0:00:30]}  Kxh6 {[%clk 0:00:21]} 1/2-1/2


[Site "https://www.chess.com"]

[Event "Titled Tuesday Blitz January 11 2022"]
[White "Cunjalo, Faris"]
[Black "Gareyev, Timur"]
[WhiteFideId "14410710"]
[BlackFideId "14200937"]
[WhiteElo "2263"]
[BlackElo "2586"]
[Result "1-0"]
[Round "06"]
[TimeControl "180+1"]
[Date "2022.01.11"]
[WhiteClock "0:00:07"]
[BlackClock "0:00:08"]

1. d4 {[%clk 0:03:00]}  d6 {[%clk 0:02:57]} 2. c4 {[%clk 0:03:01]}  Nf6 {[%clk 0:02:58]} 3. Nf3 {[%clk 0:03:00]}  g6 {[%clk 0:02:58]} 4. Nc3 {[%clk 0:03:00]}  Bg7 {[%clk 0:02:59]} 5. g3 {[%clk 0:02:58]}  Nc6 {[%clk 0:02:56]} 6. Bg2 {[%clk 0:02:58]}  Bf5 {[%clk 0:02:55]} 7. O-O {[%clk 0:02:57]}  Ne4 {[%clk 0:02:56]} 8. Nxe4 {[%clk 0:02:51]}  Bxe4 {[%clk 0:02:56]} 9. Be3 {[%clk 0:02:51]}  O-O {[%clk 0:02:48]} 10. Qd2 {[%clk 0:02:45]}  e5 {[%clk 0:02:41]} 11. d5 {[%clk 0:02:19]}  Ne7 {[%clk 0:02:37]} 12. Rac1 {[%clk 0:02:05]}  Nf5 {[%clk 0:02:31]} 13. Bg5 {[%clk 0:01:56]}  f6 {[%clk 0:02:27]} 14. Be3 {[%clk 0:01:56]}  Nxe3 {[%clk 0:02:26]} 15. Qxe3 {[%clk 0:01:57]}  f5 {[%clk 0:02:18]} 16. c5 {[%clk 0:01:45]}  Bxd5 {[%clk 0:02:03]} 17. Rfd1 {[%clk 0:01:34]}  c6 {[%clk 0:02:02]} 18. Ng5 {[%clk 0:00:36]}  Bh6 {[%clk 0:01:59]} 19. h4 {[%clk 0:00:32]}  e4 {[%clk 0:01:43]} 20. cxd6 {[%clk 0:00:21]}  Qxd6 {[%clk 0:01:41]} 21. Nxe4 {[%clk 0:00:22]}  Bxe3 {[%clk 0:01:40]} 22. Nxd6 {[%clk 0:00:23]}  Bxc1 {[%clk 0:01:38]} 23. Bxd5+ {[%clk 0:00:24]}  cxd5 {[%clk 0:01:38]} 24. Rxc1 {[%clk 0:00:25]}  Rad8 {[%clk 0:01:27]} 25. Nb5 {[%clk 0:00:23]}  f4 {[%clk 0:01:16]} 26. Nd4 {[%clk 0:00:15]}  fxg3 {[%clk 0:01:15]} 27. fxg3 {[%clk 0:00:15]}  Rde8 {[%clk 0:01:13]} 28. Rc5 {[%clk 0:00:11]}  Re5 {[%clk 0:00:56]} 29. Kg2 {[%clk 0:00:07]}  b6 {[%clk 0:00:55]} 30. Rc7 {[%clk 0:00:06]}  Re4 {[%clk 0:00:53]} 31. e3 {[%clk 0:00:02]}  Rxe3 {[%clk 0:00:52]} 32. Rxa7 {[%clk 0:00:03]}  Re4 {[%clk 0:00:51]} 33. Nc6 {[%clk 0:00:01]}  Re2+ {[%clk 0:00:46]} 34. Kh3 {[%clk 0:00:01]}  Rf7 {[%clk 0:00:45]} 35. Ra8+ {[%clk 0:00:02]}  Kg7 {[%clk 0:00:45]} 36. Nd4 {[%clk 0:00:03]}  Re4 {[%clk 0:00:40]} 37. Nb5 {[%clk 0:00:02]}  Rf3 {[%clk 0:00:29]} 38. Ra7+ {[%clk 0:00:02]}  Rf7 {[%clk 0:00:25]} 39. Rxf7+ {[%clk 0:00:02]}  Kxf7 {[%clk 0:00:24]} 40. Nd6+ {[%clk 0:00:03]}  Ke6 {[%clk 0:00:25]} 41. Nxe4 {[%clk 0:00:03]}  dxe4 {[%clk 0:00:25]} 42. Kg2 {[%clk 0:00:04]}  Kf5 {[%clk 0:00:17]} 43. a4 {[%clk 0:00:03]}  Ke5 {[%clk 0:00:15]} 44. b4 {[%clk 0:00:04]}  Kd4 {[%clk 0:00:15]} 45. Kf2 {[%clk 0:00:04]}  Kc4 {[%clk 0:00:14]} 46. a5 {[%clk 0:00:04]}  bxa5 {[%clk 0:00:10]} 47. bxa5 {[%clk 0:00:05]}  Kb5 {[%clk 0:00:10]} 48. Ke3 {[%clk 0:00:06]}  Kxa5 {[%clk 0:00:09]} 49. Kxe4 {[%clk 0:00:07]}  Kb6 {[%clk 0:00:08]} 50. Ke5 {[%clk 0:00:07]} 1-0


[Site "https://www.chess.com"]

[Event "Titled Tuesday Blitz January 11 2022"]
[White "Erigaisi Arjun"]
[Black "Boyer, Mahel"]
[WhiteFideId "35009192"]
[BlackFideId "45102422"]
[WhiteElo "2745"]
[BlackElo "2328"]
[Result "0-1"]
[Round "06"]
[TimeControl "180+1"]
[Date "2022.01.11"]
[WhiteClock "0:00:06"]
[BlackClock "0:00:04"]

1. e4 {[%clk 0:03:00]}  Nc6 {[%clk 0:03:00]} 2. Nf3 {[%clk 0:03:00]}  d5 {[%clk 0:03:00]} 3. exd5 {[%clk 0:02:57]}  Qxd5 {[%clk 0:03:01]} 4. Nc3 {[%clk 0:02:57]}  Qh5 {[%clk 0:03:02]} 5. Nb5 {[%clk 0:02:57]}  Kd8 {[%clk 0:03:02]} 6. d4 {[%clk 0:02:53]}  Bg4 {[%clk 0:03:03]} 7. Bf4 {[%clk 0:02:49]}  a6 {[%clk 0:03:03]} 8. Nc3 {[%clk 0:02:35]}  e6 {[%clk 0:03:03]} 9. Be2 {[%clk 0:02:33]}  Nf6 {[%clk 0:03:03]} 10. O-O {[%clk 0:02:30]}  Bd6 {[%clk 0:02:58]} 11. Bxd6 {[%clk 0:02:19]}  cxd6 {[%clk 0:02:59]} 12. h3 {[%clk 0:02:19]}  Bxf3 {[%clk 0:02:55]} 13. Bxf3 {[%clk 0:02:20]}  Qf5 {[%clk 0:02:53]} 14. d5 {[%clk 0:02:20]}  Ne5 {[%clk 0:02:50]} 15. Be2 {[%clk 0:02:15]}  g5 {[%clk 0:01:42]} 16. dxe6 {[%clk 0:02:05]}  Qxe6 {[%clk 0:01:42]} 17. Qd4 {[%clk 0:02:00]}  Ke7 {[%clk 0:01:38]} 18. f4 {[%clk 0:01:55]}  gxf4 {[%clk 0:01:38]} 19. Rxf4 {[%clk 0:01:56]}  Rhg8 {[%clk 0:01:37]} 20. Qf2 {[%clk 0:01:47]}  Rg6 {[%clk 0:01:33]} 21. Re1 {[%clk 0:01:19]}  Rag8 {[%clk 0:01:28]} 22. Bf1 {[%clk 0:01:18]}  Nh5 {[%clk 0:01:03]} 23. Qh4+ {[%clk 0:01:14]}  Rg5 {[%clk 0:00:30]} 24. Rf2 {[%clk 0:01:11]}  Ng3 {[%clk 0:00:16]} 25. Ne4 {[%clk 0:00:56]}  Nxe4 {[%clk 0:00:11]} 26. Rxe4 {[%clk 0:00:54]}  Kf8 {[%clk 0:00:08]} 27. Qxh7 {[%clk 0:00:47]}  R8g7 {[%clk 0:00:03]} 28. Qh8+ {[%clk 0:00:45]}  Rg8 {[%clk 0:00:03]} 29. Qh4 {[%clk 0:00:45]}  R8g7 {[%clk 0:00:01]} 30. c4 {[%clk 0:00:44]}  Kg8 {[%clk 0:00:02]} 31. b3 {[%clk 0:00:42]}  Qg6 {[%clk 0:00:02]} 32. Qf4 {[%clk 0:00:33]}  Rh5 {[%clk 0:00:02]} 33. Re3 {[%clk 0:00:33]}  Rg5 {[%clk 0:00:02]} 34. Qf6 {[%clk 0:00:30]}  Qh5 {[%clk 0:00:02]} 35. Qxd6 {[%clk 0:00:25]}  Ng6 {[%clk 0:00:03]} 36. Be2 {[%clk 0:00:21]}  Qh4 {[%clk 0:00:02]} 37. Bg4 {[%clk 0:00:19]}  Qh6 {[%clk 0:00:01]} 38. Re8+ {[%clk 0:00:17]}  Kh7 {[%clk 0:00:01]} 39. Bf5 {[%clk 0:00:16]}  Qh4 {[%clk 0:00:01]} 40. Re4 {[%clk 0:00:10]}  Qxf2+ {[%clk 0:00:01]} 41. Kxf2 {[%clk 0:00:11]}  Rxf5+ {[%clk 0:00:01]} 42. Ke3 {[%clk 0:00:12]}  Rg5 {[%clk 0:00:01]} 43. g4 {[%clk 0:00:12]}  f5 {[%clk 0:00:02]} 44. gxf5 {[%clk 0:00:13]}  Rxf5 {[%clk 0:00:02]} 45. Re6 {[%clk 0:00:13]}  Rh5 {[%clk 0:00:02]} 46. Kd2 {[%clk 0:00:10]}  Rxh3 {[%clk 0:00:02]} 47. Kc2 {[%clk 0:00:10]}  Rh6 {[%clk 0:00:02]} 48. Kb2 {[%clk 0:00:10]}  Rh5 {[%clk 0:00:02]} 49. Ka3 {[%clk 0:00:10]}  Rh6 {[%clk 0:00:02]} 50. Qd3 {[%clk 0:00:10]}  Rh5 {[%clk 0:00:02]} 51. Qe4 {[%clk 0:00:10]}  Rh6 {[%clk 0:00:02]} 52. c5 {[%clk 0:00:10]}  Kh8 {[%clk 0:00:03]} 53. Re8+ {[%clk 0:00:10]}  Kh7 {[%clk 0:00:03]} 54. b4 {[%clk 0:00:10]}  Rh4 {[%clk 0:00:03]} 55. Qd3 {[%clk 0:00:09]}  Rh6 {[%clk 0:00:02]} 56. Re3 {[%clk 0:00:09]}  Kh8 {[%clk 0:00:02]} 57. Rh3 {[%clk 0:00:09]}  Rxh3 {[%clk 0:00:02]} 58. Qxh3+ {[%clk 0:00:10]}  Kg8 {[%clk 0:00:03]} 59. Qc8+ {[%clk 0:00:10]}  Kh7 {[%clk 0:00:02]} 60. c6 {[%clk 0:00:11]}  bxc6 {[%clk 0:00:03]} 61. Qxc6 {[%clk 0:00:12]}  Ne5 {[%clk 0:00:02]} 62. Qe4+ {[%clk 0:00:12]}  Ng6 {[%clk 0:00:03]} 63. Ka4 {[%clk 0:00:12]}  Re7 {[%clk 0:00:03]} 64. Qh1+ {[%clk 0:00:12]}  Kg7 {[%clk 0:00:03]} 65. Ka5 {[%clk 0:00:13]}  Re6 {[%clk 0:00:03]} 66. a4 {[%clk 0:00:12]}  Kf6 {[%clk 0:00:04]} 67. Qa1+ {[%clk 0:00:12]}  Ke7 {[%clk 0:00:04]} 68. Qg7+ {[%clk 0:00:11]}  Kd8 {[%clk 0:00:04]} 69. Qf7 {[%clk 0:00:09]}  Rd6 {[%clk 0:00:03]} 70. Qg8+ {[%clk 0:00:08]}  Kc7 {[%clk 0:00:03]} 71. Qa8 {[%clk 0:00:08]}  Ne7 {[%clk 0:00:03]} 72. Qa7+ {[%clk 0:00:08]}  Kd8 {[%clk 0:00:03]} 73. Qb8+ {[%clk 0:00:08]}  Nc8 {[%clk 0:00:04]} 74. Qb7 {[%clk 0:00:06]}  Ne7 {[%clk 0:00:02]} 75. b5 {[%clk 0:00:05]}  axb5 {[%clk 0:00:02]} 76. axb5 {[%clk 0:00:06]}  Nc8 {[%clk 0:00:03]} 77. Kb4 {[%clk 0:00:06]}  Rb6 {[%clk 0:00:03]} 78. Qd5+ {[%clk 0:00:05]}  Rd6 {[%clk 0:00:04]} 79. Qg8+ {[%clk 0:00:05]}  Kc7 {[%clk 0:00:04]} 80. Kc5 {[%clk 0:00:06]}  Nb6 {[%clk 0:00:04]} 81. Qf7+ {[%clk 0:00:05]}  Nd7+ {[%clk 0:00:05]} 82. Kb4 {[%clk 0:00:06]}  Rf6 {[%clk 0:00:05]} 83. Qg7 {[%clk 0:00:06]}  Rd6 {[%clk 0:00:04]} 84. Qg3 {[%clk 0:00:06]}  Nb6 {[%clk 0:00:04]} 85. Qe5 {[%clk 0:00:05]}  Nd7 {[%clk 0:00:03]} 86. Qc3+ {[%clk 0:00:05]}  Kb7 {[%clk 0:00:03]} 87. Ka5 {[%clk 0:00:05]}  Nb6 {[%clk 0:00:03]} 88. Qf3+ {[%clk 0:00:04]}  Kc7 {[%clk 0:00:02]} 89. Qf7+ {[%clk 0:00:04]}  Nd7 {[%clk 0:00:03]} 90. Qc4+ {[%clk 0:00:04]}  Kb7 {[%clk 0:00:03]} 91. Qe4+ {[%clk 0:00:05]}  Kc7 {[%clk 0:00:03]} 92. Qe7 {[%clk 0:00:05]}  Rd5 {[%clk 0:00:03]} 93. Ka6 {[%clk 0:00:05]}  Rd6+ {[%clk 0:00:03]} 94. Ka7 {[%clk 0:00:05]}  Rb6 {[%clk 0:00:03]} 95. Qb4 {[%clk 0:00:04]}  Rb7+ {[%clk 0:00:03]} 96. Ka6 {[%clk 0:00:05]}  Nb8+ {[%clk 0:00:03]} 97. Ka5 {[%clk 0:00:06]}  Ra7# {[%clk 0:00:04]} 0-1


[Site "https://www.chess.com"]

[Event "Titled Tuesday Blitz January 11 2022"]
[White "Gaehwiler, Gabriel"]
[Black "Demchenko, Anton"]
[WhiteFideId "1314530"]
[BlackFideId "4160258"]
[WhiteElo "2383"]
[BlackElo "2539"]
[Result "1-0"]
[Round "06"]
[TimeControl "180+1"]
[Date "2022.01.11"]
[WhiteClock "0:00:13"]
[BlackClock "0:00:02"]

1. d4 {[%clk 0:03:00]}  Nf6 {[%clk 0:02:59]} 2. c4 {[%clk 0:02:59]}  g6 {[%clk 0:02:59]} 3. g3 {[%clk 0:02:58]}  Bg7 {[%clk 0:03:00]} 4. Bg2 {[%clk 0:02:58]}  O-O {[%clk 0:03:00]} 5. Nf3 {[%clk 0:02:58]}  d6 {[%clk 0:03:01]} 6. b3 {[%clk 0:02:58]}  e5 {[%clk 0:02:56]} 7. Bb2 {[%clk 0:02:56]}  e4 {[%clk 0:02:56]} 8. Nfd2 {[%clk 0:02:38]}  e3 {[%clk 0:02:56]} 9. fxe3 {[%clk 0:02:39]}  Ng4 {[%clk 0:02:57]} 10. Nf1 {[%clk 0:02:36]}  Qe7 {[%clk 0:02:53]} 11. Nc3 {[%clk 0:02:29]}  c6 {[%clk 0:02:49]} 12. Qd3 {[%clk 0:02:01]}  Bh6 {[%clk 0:02:40]} 13. h3 {[%clk 0:01:56]}  Nf6 {[%clk 0:02:09]} 14. e4 {[%clk 0:01:51]}  Na6 {[%clk 0:02:06]} 15. a3 {[%clk 0:01:49]}  Bd7 {[%clk 0:01:57]} 16. e3 {[%clk 0:01:45]}  Rab8 {[%clk 0:01:46]} 17. O-O-O {[%clk 0:01:36]}  Nc7 {[%clk 0:01:23]} 18. e5 {[%clk 0:01:33]}  Nfe8 {[%clk 0:01:18]} 19. exd6 {[%clk 0:01:17]}  Nxd6 {[%clk 0:01:18]} 20. d5 {[%clk 0:01:13]}  Bf5 {[%clk 0:01:00]} 21. Qd4 {[%clk 0:01:03]}  Bg7 {[%clk 0:00:56]} 22. Qd2 {[%clk 0:01:03]}  cxd5 {[%clk 0:00:48]} 23. Nxd5 {[%clk 0:01:02]}  Bxb2+ {[%clk 0:00:46]} 24. Kxb2 {[%clk 0:00:57]}  Nxd5 {[%clk 0:00:47]} 25. Bxd5 {[%clk 0:00:57]}  b5 {[%clk 0:00:42]} 26. c5 {[%clk 0:00:37]}  Ne4 {[%clk 0:00:42]} 27. Qd4 {[%clk 0:00:24]}  Nxc5 {[%clk 0:00:40]} 28. Nd2 {[%clk 0:00:20]}  Rfd8 {[%clk 0:00:33]} 29. e4 {[%clk 0:00:16]}  Be6 {[%clk 0:00:21]} 30. Rc1 {[%clk 0:00:16]}  Rbc8 {[%clk 0:00:20]} 31. Rhf1 {[%clk 0:00:16]}  Bxd5 {[%clk 0:00:09]} 32. exd5 {[%clk 0:00:17]}  Qe2 {[%clk 0:00:09]} 33. Rc3 {[%clk 0:00:15]}  Ne6 {[%clk 0:00:05]} 34. Qf2 {[%clk 0:00:14]}  Qxf2 {[%clk 0:00:02]} 35. Rxf2 {[%clk 0:00:15]}  Rxc3 {[%clk 0:00:02]} 36. Kxc3 {[%clk 0:00:15]}  Rxd5 {[%clk 0:00:03]} 37. Ne4 {[%clk 0:00:16]}  Kg7 {[%clk 0:00:03]} 38. Nf6 {[%clk 0:00:16]}  Rd4 {[%clk 0:00:02]} 39. Ng4 {[%clk 0:00:13]} 1-0


[Site "https://www.chess.com"]